fUSD/lending_fUSD_20260404
["ID","MTS","AMOUNT","RATE_DAILY","PERIOD"]
[419705134,1775325032424,-151.0,0.00011539,2]
[419705136,1775325032434,-151.0,0.00011539,2]
[419705138,1775325032443,-151.0,0.00011539,2]
[419705139,1775325032452,-151.0,0.00011539,2]
[419705140,1775325032462,-151.0,0.00011539,2]
[419705141,1775325032471,-151.0,0.00011539,2]
[419705142,1775325032480,-151.0,0.00011543,2]
[419705143,1775325032489,-879.65842586,0.00011544,2]
[419705144,1775325032499,-2631.057,0.00011544,2]
[419705145,1775325032508,-173.993,0.00011544,2]
[419705146,1775325032517,-500.0,0.00011545,2]
[419705147,1775325032525,-500.0,0.00011545,2]
[419705148,1775325032534,-309.30706604,0.00011545,2]
[419705149,1775325032543,-500.0,0.00011545,2]
[419705150,1775325032552,-500.0,0.00011545,2]
[419705151,1775325032561,-302.52182879,0.00011545,2]
[419705152,1775325032571,-306.27165808,0.00011545,2]
[419705153,1775325032580,-500.0,0.00011545,2]
[419705154,1775325032589,-500.0,0.00011545,2]
[419705155,1775325032598,-500.0,0.00011545,2]
[419705156,1775325032607,-500.0,0.00011545,2]
[419705157,1775325032616,-500.0,0.00011545,2]
[419705158,1775325032625,-500.0,0.00011545,2]
[419705159,1775325032634,-500.0,0.00011545,2]
[419705160,1775325032643,-500.0,0.00011545,2]
[419705161,1775325032652,-388.38315409,0.00011545,2]
[419705162,1775325032662,-500.0,0.00011545,2]
[419705163,1775325032671,-205.88426718,0.00011545,2]
[419705164,1775325032681,-500.0,0.00011545,2]
[419705165,1775325032690,-500.0,0.00011545,2]
[419705166,1775325032700,-500.0,0.00011545,2]
[419705167,1775325032710,-500.0,0.00011545,2]
[419705168,1775325032720,-500.0,0.00011545,2]
[419705169,1775325032729,-500.0,0.00011545,2]
[419705170,1775325032739,-500.0,0.00011545,2]
[419705171,1775325032750,-470.73457951,0.00011545,2]
[419705172,1775325032760,-500.0,0.00011545,2]
[419705173,1775325032770,-500.0,0.00011545,2]
[419705174,1775325032780,-500.0,0.00011545,2]
[419705175,1775325032789,-500.0,0.00011545,2]
[419705176,1775325032798,-500.0,0.00011545,2]
[419705177,1775325032808,-500.0,0.00011545,2]
[419705178,1775325032819,-734.87,0.00011545,2]
[419705179,1775325032829,-204368.86300709,0.00011546,2]
[419705180,1775325032850,-603.84235597,0.00011546,2]
[419705181,1775325032861,-61080.98394701,0.00011546,2]
[419705182,1775325032955,-19689.57241436,0.00011546,2]
[419705183,1775325032969,-351.5299975,0.00011546,2]
[419705184,1775325032981,-440.0,0.00011546,2]
[419705185,1775325032993,-25421.34815154,0.00011546,2]
[419705193,1775325037665,-181.19588672,0.00011549,2]
[419705194,1775325037675,-1331.96460904,0.00011549,2]
[419705195,1775325037686,-1723.39596949,0.00011549,2]
[419705196,1775325037695,-154.44365078,0.00011749,2]
[419705197,1775325037704,-151.0,0.00011766,2]
[419705198,1775325037713,-734.87,0.00011819,2]
[419705199,1775325037722,-5385.69997486,0.00011944,2]
[419705200,1775325037769,-2805.82255625,0.00011944,2]
[419705201,1775325037787,-4934.206548,0.00011944,2]
[419705202,1775325037799,-188.23758801,0.00011944,2]
[419705203,1775325037808,-307.53376027,0.00011949,2]
[419705204,1775325037817,-1904.0,0.00011987,2]
[419705205,1775325037826,-217.47992617,0.00012009,2]
[419705206,1775325037835,-193.77271652,0.00012009,2]
[419705207,1775325037844,-1999.91795989,0.00012009,2]
[419705208,1775325037856,-404.24627315,0.00012009,2]
[419705209,1775325037865,-201.67684113,0.00012009,2]
[419705210,1775325037874,-1319.0,0.00012011,2]
[419705211,1775325037883,-3055.36057846,0.00012032,2]
[419705212,1775325037892,-17731.5543,0.00012063,2]
[419705213,1775325037905,-691.4036148,0.00012063,2]
[419705214,1775325037920,-165532.55950243,0.00012063,2]
[419705215,1775325037931,-796.55986639,0.00012063,2]
[419705216,1775325037942,-4264.19002541,0.00012063,2]
[419705217,1775325037953,-8771.8,0.00012063,2]
[419705218,1775325037968,-639.31888652,0.00012063,2]
[419705219,1775325037987,-308171.58944462,0.00012063,2]
[419705220,1775325037997,-734.87,0.00012093,2]
[419705221,1775325038007,-250.0,0.00012109,2]
[419705223,1775325038015,-300.0,0.00012109,2]
[419705225,1775325038024,-250.0,0.00012109,2]
[419705226,1775325038033,-196.1,0.00012124,2]
[419705228,1775325038043,-734.87,0.00012367,2]
[419705229,1775325038052,-13313.96666712,0.00012438,2]
[419705230,1775325038061,-3055.36057846,0.00012516,2]
[419705231,1775325038070,-5000.0,0.00012594,2]
[419705232,1775325038080,-5000.0,0.00012594,2]
[419705233,1775325038089,-600.0,0.00012594,2]
[419705234,1775325038099,-193.0,0.00012594,2]
[419705235,1775325038108,-300.0,0.00012594,2]
[419705236,1775325038117,-255.0,0.00012599,2]
[419705237,1775325038126,-734.87,0.00012641,2]
[419705238,1775325038135,-1680.0,0.00012691,2]
[419705239,1775325038144,-1000.0,0.00012699,2]
[419705240,1775325038153,-196.1,0.0001273,2]
[419705241,1775325038162,-3007.56865267,0.00012739,2]
[419705242,1775325038171,-154.44365077,0.00012787,2]
[419705244,1775325038180,-734.88,0.00012915,2]
[419705245,1775325038189,-13313.96666712,0.00012933,2]
[419705246,1775325038199,-3055.36057846,0.00012999,2]
[419705247,1775325038208,-250.0,0.00013,2]
[419705248,1775325038217,-536.98239671,0.00013065,2]
[419705249,1775325038226,-518.0,0.00013111,2]
[419705250,1775325038235,-516.00031304,0.00013159,2]
[419705251,1775325038244,-365.47,0.00013177,2]
[419705252,1775325038253,-22282.46,0.00013311,2]
[419705253,1775325038263,-196.1,0.00013336,2]
[419705254,1775325038272,-190.92,0.000134,2]
[419705255,1775325038280,-13313.96666712,0.00013427,2]
[419705256,1775325038290,-3055.36057846,0.00013483,2]
[419705257,1775325038299,-500.0,0.00013698,2]
[419705258,1775325038309,-500.0,0.00013698,2]
[419705259,1775325038318,-500.0,0.00013698,2]
[419705260,1775325038327,-500.0,0.00013698,2]
[419705261,1775325038335,-500.0,0.00013698,2]
[419705262,1775325038344,-500.0,0.00013698,2]
[419705263,1775325038354,-554.98922439,0.00013698,2]
[419705264,1775325038363,-500.0,0.00013698,2]
[419705265,1775325038372,-500.0,0.00013698,2]
[419705266,1775325038381,-540.38303843,0.00013698,2]
[419705267,1775325038390,-500.0,0.00013698,2]
[419705268,1775325038399,-500.0,0.00013698,2]
[419705269,1775325038409,-500.0,0.00013698,2]
[419705270,1775325038418,-500.0,0.00013698,2]
[419705271,1775325038427,-500.0,0.00013698,2]
[419705272,1775325038437,-500.0,0.00013698,2]
[419705273,1775325038446,-500.0,0.00013698,2]
[419705274,1775325038455,-500.0,0.00013698,2]
[419705275,1775325038464,-500.0,0.00013698,2]
[419705276,1775325038473,-500.0,0.00013698,2]
[419705277,1775325038481,-500.0,0.00013698,2]
[419705278,1775325038490,-500.0,0.00013698,2]
[419705279,1775325038499,-500.0,0.00013698,2]
[419705280,1775325038508,-500.0,0.00013698,2]
[419705281,1775325038517,-500.0,0.00013698,2]
[419705282,1775325038526,-500.0,0.00013698,2]
[419705283,1775325038536,-500.0,0.00013698,2]
[419705284,1775325038545,-500.0,0.00013698,2]
[419705285,1775325038553,-500.0,0.00013698,2]
[419705286,1775325038562,-500.0,0.00013698,2]
[419705287,1775325038571,-500.0,0.00013698,2]
[419705288,1775325038580,-500.0,0.00013698,2]
[419705289,1775325038589,-512.39809745,0.00013698,2]
[419705290,1775325038599,-500.0,0.00013698,2]
[419705291,1775325038607,-491.0,0.00013698,2]
[419705292,1775325038616,-150.0,0.00013699,2]
[419705293,1775325038626,-150.0,0.00013699,2]
[419705294,1775325038635,-200.0,0.00013699,2]
[419705295,1775325038644,-500.84321214,0.00013699,2]
[419705296,1775325038653,-500.0,0.00013699,2]
[419705297,1775325038663,-500.0,0.00013699,2]
[419705298,1775325038672,-306.90768699,0.00013699,2]
[419705299,1775325038682,-500.0,0.00013699,2]
[419705300,1775325038691,-500.0,0.00013699,2]
[419705301,1775325038700,-500.0,0.00013699,2]
[419705302,1775325038709,-500.0,0.00013699,2]
[419705303,1775325038720,-419.18220394,0.00013699,2]
[419705304,1775325038730,-400.82912005,0.00013699,2]
[419705305,1775325038740,-600.35533716,0.00013699,2]
[419705306,1775325038749,-181.1958867,0.00013725,2]
[419705307,1775325038759,-223.0,0.00013753,2]
[419705308,1775325038768,-154.44365077,0.00013825,2]
[419705309,1775325038778,-500.0,0.00013825,2]
[419705310,1775325038787,-500.0,0.00013825,2]
[419705311,1775325038796,-500.0,0.00013825,2]
[419705312,1775325038807,-500.0,0.00013825,2]
[419705313,1775325038818,-451.22561779,0.0001385,2]
[419705314,1775325038829,-500.0,0.0001385,2]
[419705315,1775325038840,-500.0,0.0001385,2]
[419705316,1775325038849,-500.92096855,0.0001385,2]
[419705317,1775325038858,-500.0,0.0001385,2]
[419705318,1775325038868,-13313.96666712,0.00013922,2]
[419705319,1775325038877,-196.1,0.00013942,2]
[419705320,1775325038886,-217.47992615,0.00013955,2]
[419705321,1775325038895,-193.77271651,0.00013955,2]
[419705322,1775325038905,-2404.16423302,0.00013955,2]
[419705323,1775325038914,-500.67291823,0.0001396,2]
[419705324,1775325038923,-500.0,0.0001396,2]
[419705325,1775325038932,-2351.0,0.0001396,2]
[419705326,1775325038943,-3055.36057846,0.00013966,2]
[419705327,1775325038952,-500.0,0.00013971,2]
[419705328,1775325038962,-500.0,0.00013971,2]
[419705329,1775325038972,-500.0,0.00013971,2]
[419705330,1775325038984,-501.15172574,0.00013971,2]
[419705331,1775325038996,-150.0,0.00013973,2]
[419705332,1775325039005,-150.0,0.00013973,2]
[419705333,1775325039014,-326.02015785,0.00014247,2]
[419705334,1775325039023,-602.10958763,0.00014247,2]
[419705335,1775325039032,-350.87215084,0.00014247,2]
[419705336,1775325039042,-505.31465094,0.00014247,2]
[419705337,1775325039051,-500.0,0.00014356,2]
[419705338,1775325039060,-900.0,0.00014356,2]
[419705339,1775325039068,-500.0,0.00014373,2]
[419705340,1775325039078,-500.0,0.00014373,2]
[419705341,1775325039087,-1000.0,0.00014373,2]
[419705342,1775325039096,-200.0,0.00014388,2]
[419705343,1775325039106,-500.0,0.00014388,2]
[419705344,1775325039115,-500.0,0.00014388,2]
[419705345,1775325039124,-500.0,0.00014388,2]
[419705346,1775325039133,-500.0,0.00014388,2]
[419705347,1775325039328,-174.61919141,0.00014388,2]
[419705348,1775325039376,-500.0,0.00014388,2]
[419705349,1775325039385,-743.50770149,0.00014388,2]
[419705350,1775325039394,-500.0,0.00014388,2]
[419705351,1775325039403,-500.0,0.00014388,2]
[419705352,1775325039413,-151.0,0.00014388,2]
[419705353,1775325039422,-500.0,0.00014388,2]
[419705354,1775325039431,-319.32250207,0.00014388,2]
[419705355,1775325039440,-207.78425205,0.00014388,2]
[419705356,1775325039450,-469.132494,0.00014392,2]
[419705357,1775325039459,-500.0,0.00014398,2]
[419705358,1775325039468,-1000.0,0.00014398,2]
[419705359,1775325039477,-150.0,0.000144,2]
[419705360,1775325039488,-150.0,0.000144,2]
[419705361,1775325039498,-150.0,0.000144,2]
[419705362,1775325039507,-150.0,0.000144,2]
[419705363,1775325039517,-150.0,0.000144,2]
[419705364,1775325039527,-150.0,0.000144,2]
[419705365,1775325039536,-150.0,0.000144,2]
[419705366,1775325039546,-150.0,0.000144,2]
[419705367,1775325039555,-150.0,0.000144,2]
[419705368,1775325039564,-500.0,0.00014443,2]
[419705369,1775325039574,-151.0,0.00014443,2]
[419705370,1775325039583,-3055.36057846,0.0001445,2]
[419705371,1775325039593,-500.0,0.00014498,2]
[419705372,1775325039602,-151.0,0.00014498,2]
[419705373,1775325039612,-1000.0,0.00014508,2]
[419705374,1775325039620,-1000.0,0.00014519,2]
[419705375,1775325039630,-1000.0,0.00014519,2]
[419705376,1775325039639,-150.0,0.00014523,2]
[419705377,1775325039648,-196.1,0.00014549,2]
[419705378,1775325039658,-151.0,0.00014553,2]
[419705379,1775325039667,-150.0,0.0001456,2]
[419705380,1775325039677,-150.0,0.0001456,2]
[419705381,1775325039686,-150.0,0.00014578,2]
[419705382,1775325039696,-160.9357,0.000146,2]
[419705383,1775325039705,-160.9357,0.000146,2]
[419705384,1775325039714,-160.9357,0.000146,2]
[419705385,1775325039723,-160.9357,0.000146,2]
[419705386,1775325039733,-151.0,0.00014608,2]
[419705387,1775325039742,-150.0,0.00014629,2]
[419705388,1775325039752,-150.0,0.00014646,2]
[419705389,1775325039761,-150.0,0.00014667,2]
[419705390,1775325039770,-160.9357,0.000147,2]
[419705391,1775325039779,-160.9357,0.000147,2]
[419705392,1775325039788,-160.9357,0.000147,2]
[419705393,1775325039798,-160.9357,0.000147,2]
[419705394,1775325039807,-500.0,0.00014712,2]
[419705395,1775325039817,-150.0,0.0001472,2]
[419705396,1775325039826,-150.0,0.0001472,2]
[419705397,1775325039836,-150.0,0.00014756,2]
[419705398,1775325039845,-150.0,0.00014769,2]
[419705399,1775325039855,-500.0,0.00014781,2]
[419705400,1775325039864,-500.0,0.00014781,2]
[419705401,1775325039873,-500.0,0.00014781,2]
[419705402,1775325039883,-500.0,0.00014781,2]
[419705403,1775325039892,-500.0,0.00014781,2]
[419705404,1775325039902,-160.9357,0.000148,2]
[419705405,1775325039911,-160.9357,0.000148,2]
[419705406,1775325039921,-160.9357,0.000148,2]
[419705407,1775325039930,-160.9357,0.000148,2]
[419705408,1775325039940,-217.51540986,0.00014832,2]
[419705409,1775325039949,-150.0,0.00014857,2]
[419705410,1775325039959,-154.44365077,0.00014862,2]
[419705411,1775325039971,-150.0,0.0001488,2]
[419705412,1775325039981,-150.0,0.0001488,2]
[419705413,1775325039991,-250.44802125,0.00014881,2]
[419705414,1775325040003,-171.93933998,0.00014881,2]
[419705415,1775325040012,-150.0,0.00014892,2]
[419705416,1775325040022,-160.9357,0.000149,2]
[419705417,1775325040032,-160.9357,0.000149,2]
[419705418,1775325040042,-160.9357,0.000149,2]
[419705419,1775325040052,-160.9357,0.000149,2]
[419705420,1775325040062,-222.61585424,0.00014901,2]
[419705421,1775325040072,-1003.04138262,0.00014921,2]
[419705422,1775325040082,-3055.36057846,0.00014933,2]
[419705423,1775325040091,-150.0,0.00014933,2]
[419705424,1775325040101,-150.0,0.00014933,2]
[419705425,1775325040110,-150.0,0.00014933,2]
[419705426,1775325040120,-150.0,0.00014933,2]
[419705427,1775325040130,-200.0,0.00014936,2]
[419705428,1775325040139,-181.08010149,0.00014936,2]
[419705429,1775325040148,-658.53755309,0.00014936,2]
[419705430,1775325040157,-500.0,0.0001494,2]
[419705431,1775325040167,-1500.0,0.00014946,2]
[419705432,1775325040176,-374.84290547,0.00014969,2]
[419705433,1775325040185,-500.0,0.00014991,2]
[419705434,1775325040195,-160.9357,0.00015,2]
[419705435,1775325040204,-160.9357,0.00015,2]
[419705436,1775325040214,-160.9357,0.00015,2]
[419705437,1775325040223,-160.9357,0.00015,2]
[419705438,1775325040232,-300.0,0.00015,2]
[419705439,1775325040242,-8100.0,0.00015,2]
[419705440,1775325040251,-150.0,0.00015015,2]
[419705441,1775325040260,-1384.0,0.00015028,2]
[419705442,1775325040270,-2809.0,0.0001504,2]
[419705443,1775325040279,-150.0,0.0001504,2]
[419705444,1775325040289,-150.0,0.0001504,2]
[419705445,1775325040298,-331.51791405,0.00015056,2]
[419705446,1775325040307,-1500.0,0.00015067,2]
[419705447,1775325040317,-1500.0,0.00015067,2]
[419705448,1775325040326,-1384.0,0.00015071,2]
[419705449,1775325040335,-150.0,0.00015086,2]
[419705450,1775325040344,-150.0,0.00015111,2]
[419705451,1775325040354,-150.0,0.00015138,2]
[419705452,1775325040363,-1384.0,0.00015141,2]
[419705453,1775325040372,-196.1,0.00015155,2]
[419705454,1775325040381,-1176.0,0.00015156,2]
[419705455,1775325040391,-1384.0,0.0001516,2]
[419705456,1775325040400,-1176.0,0.00015194,2]
[419705457,1775325040409,-150.0,0.000152,2]
[419705458,1775325040420,-150.0,0.000152,2]
[419705459,1775325040429,-150.0,0.000152,2]
[419705460,1775325040438,-258.60020314,0.00015207,2]
[419705461,1775325040447,-1384.0,0.00015226,2]
[419705462,1775325040457,-2008.0,0.00015243,5]
[419705463,1775325040466,-1606.0,0.00015243,5]
[419705464,1775325040475,-150.0,0.00015262,2]
[419705465,1775325040485,-291.58606012,0.00015284,2]
[419705466,1775325040495,-746.24352258,0.00015284,2]
[419705467,1775325040504,-150.0,0.00015289,2]
[419705468,1775325040514,-150.99,0.0001531,2]
[419705469,1775325040524,-5791.26,0.0001531,2]
[419705470,1775325040533,-9999.99,0.0001531,2]
[419705471,1775325040542,-299.99,0.0001531,2]
[419705472,1775325040552,-150.0,0.00015314,2]
[419705473,1775325040561,-278.53573884,0.0001533,2]
[419705474,1775325040570,-350.0,0.00015343,2]
[419705475,1775325040580,-1347.0,0.00015356,2]
[419705476,1775325040590,-150.0,0.0001536,2]
[419705477,1775325040600,-150.0,0.0001536,2]
[419705478,1775325040609,-150.0,0.00015385,2]
[419705479,1775325040619,-2000.0,0.000154,2]
[419705480,1775325040628,-1609.226141,0.00015405,2]
[419705481,1775325040637,-1609.226141,0.00015405,2]
[419705482,1775325040646,-735.594438,0.00015405,2]
[419705483,1775325040655,-1609.226141,0.00015405,2]
[419705484,1775325040664,-735.594438,0.00015405,2]
[419705485,1775325040674,-1609.226141,0.00015405,2]
[419705486,1775325040683,-735.594438,0.00015405,2]
[419705487,1775325040691,-735.594438,0.00015405,2]
[419705488,1775325040700,-2143.89,0.00015411,2]
[419705489,1775325040709,-542.549929,0.00015416,2]
[419705491,1775325040719,-151.0,0.00015416,2]
[419705492,1775325040728,-151.0,0.00015416,2]
[419705493,1775325040737,-542.549929,0.00015416,2]
[419705494,1775325040746,-542.549929,0.00015416,2]
[419705495,1775325040755,-151.0,0.00015416,2]
[419705496,1775325040764,-542.549929,0.00015416,2]
[419705497,1775325040773,-269.191333,0.00015416,2]
[419705498,1775325040782,-3055.36057846,0.00015417,2]
[419705499,1775325040791,-1176.0,0.00015445,2]
[419705500,1775325040800,-150.0,0.00015467,2]
[419705502,1775325040809,-150.0,0.00015467,2]
[419705503,1775325040818,-150.0,0.00015467,2]
[419705504,1775325040827,-150.0,0.00015467,2]
[419705505,1775325040836,-350.0,0.00015482,2]
[419705506,1775325040845,-1176.0,0.00015483,2]
[419705507,1775325040854,-187.78006525,0.00015484,2]
[419705508,1775325040863,-597.01949969,0.00015488,2]
[419705509,1775325040873,-1176.0,0.00015493,2]
[419705510,1775325040882,-374.28257311,0.00015494,2]
[419705511,1775325040891,-160.9357,0.000155,2]
[419705512,1775325040900,-2286.27,0.00015507,2]
[419705513,1775325040909,-150.0,0.00015508,2]
[419705514,1775325040918,-150.0,0.0001552,2]
[419705515,1775325040928,-150.0,0.0001552,2]
[419705516,1775325040937,-150.0,0.00015543,2]
[419705517,1775325040946,-785.54,0.0001557,2]
[419705518,1775325040956,-2000.0,0.000156,2]
[419705519,1775325040965,-160.9357,0.000156,2]
[419705520,1775325040974,-2000.0,0.00015601,2]
[419705521,1775325040983,-1000.0,0.00015615,2]
[419705522,1775325040993,-150.0,0.00015631,2]
[419705523,1775325041005,-150.0,0.00015644,2]
[419705524,1775325041015,-1176.0,0.00015647,2]
[419705525,1775325041025,-350.0,0.00015664,2]
[419705526,1775325041037,-2630.15521228,0.0001568,2]
[419705527,1775325041046,-150.0,0.0001568,2]
[419705528,1775325041055,-150.0,0.0001568,2]
[419705529,1775325041066,-160.9357,0.000157,2]
[419705530,1775325041076,-2000.0,0.00015701,2]
[419705531,1775325041087,-500.0,0.00015726,2]
[419705532,1775325041097,-900.0,0.00015726,2]
[419705533,1775325041106,-150.0,0.00015733,2]
[419705534,1775325041116,-1000.0,0.00015736,2]
[419705535,1775325041126,-245.407609,0.00015753,2]
[419705536,1775325041136,-150.0,0.00015754,2]
[419705537,1775325041145,-151.0,0.00015759,2]
[419705538,1775325041156,-151.0,0.00015759,2]
[419705539,1775325041167,-299.158801,0.00015759,2]
[419705540,1775325041175,-242.216241,0.00015759,2]
[419705541,1775325041184,-242.216241,0.00015759,2]
[419705542,1775325041194,-242.216241,0.00015759,2]
[419705543,1775325041203,-242.216241,0.00015759,2]
[419705544,1775325041213,-1176.0,0.00015759,2]
[419705545,1775325041222,-196.1,0.00015761,2]
[419705546,1775325041232,-193.8,0.00015763,2]
[419705547,1775325041242,-150.0,0.00015771,2]
[419705548,1775325041251,-1581.7372,0.00015776,2]
[419705549,1775325041260,-1581.7372,0.00015776,2]
[419705550,1775325041269,-1581.7372,0.00015776,2]
[419705551,1775325041278,-1581.7372,0.00015776,2]
[419705552,1775325041287,-672.0,0.00015776,2]
[419705553,1775325041296,-672.0,0.00015776,2]
[419705554,1775325041305,-672.0,0.00015776,2]
[419705555,1775325041315,-672.0,0.00015776,2]
[419705556,1775325041324,-672.0,0.00015776,2]
[419705557,1775325041334,-672.0,0.00015776,2]
[419705558,1775325041344,-672.0,0.00015776,2]
[419705559,1775325041353,-672.0,0.00015776,2]
[419705560,1775325041362,-672.0,0.00015776,2]
[419705561,1775325041372,-672.0,0.00015776,2]
[419705562,1775325041382,-672.0,0.00015776,2]
[419705563,1775325041391,-672.0,0.00015776,2]
[419705564,1775325041400,-672.0,0.00015776,2]
[419705565,1775325041409,-672.0,0.00015776,2]
[419705566,1775325041419,-672.0,0.00015776,2]
[419705567,1775325041428,-672.0,0.00015776,2]
[419705568,1775325041438,-672.0,0.00015776,2]
[419705569,1775325041447,-672.0,0.00015776,2]
[419705570,1775325041456,-672.0,0.00015776,2]
[419705571,1775325041465,-672.0,0.00015776,2]
[419705572,1775325041474,-672.0,0.00015776,2]
[419705573,1775325041484,-672.0,0.00015776,2]
[419705574,1775325041493,-672.0,0.00015776,2]
[419705575,1775325041502,-692.53940565,0.00015776,2]
[419705576,1775325041511,-4387.0,0.00015776,2]
[419705577,1775325041520,-4387.0,0.00015776,2]
[419705578,1775325041529,-4387.0,0.00015776,2]
[419705579,1775325041538,-4387.0,0.00015776,2]
[419705580,1775325041547,-4387.0,0.00015776,2]
[419705581,1775325041557,-4387.0,0.00015776,2]
[419705582,1775325041566,-4387.0,0.00015776,2]
[419705583,1775325041575,-4387.0,0.00015776,2]
[419705584,1775325041584,-4387.0,0.00015776,2]
[419705585,1775325041594,-4387.0,0.00015776,2]
[419705586,1775325041603,-4387.0,0.00015776,2]
[419705587,1775325041612,-4387.0,0.00015776,2]
[419705588,1775325041621,-4387.0,0.00015776,2]
[419705589,1775325041630,-4387.0,0.00015776,2]
[419705590,1775325041639,-4387.0,0.00015776,2]
[419705591,1775325041648,-4387.0,0.00015776,2]
[419705592,1775325041657,-4387.0,0.00015776,2]
[419705593,1775325041666,-4387.0,0.00015776,2]
[419705594,1775325041675,-4387.0,0.00015776,2]
[419705595,1775325041684,-4387.0,0.00015776,2]
[419705596,1775325041693,-4387.0,0.00015776,2]
[419705597,1775325041702,-4387.0,0.00015776,2]
[419705598,1775325041711,-4387.0,0.00015776,2]
[419705599,1775325041720,-4399.29355466,0.00015776,2]
[419705600,1775325041730,-151.0,0.00015776,2]
[419705601,1775325041739,-151.0,0.00015776,2]
[419705602,1775325041748,-151.0,0.00015776,2]
[419705603,1775325041756,-151.0,0.00015776,2]
[419705604,1775325041765,-151.0,0.00015776,2]
[419705605,1775325041775,-150.0,0.00015778,2]
[419705606,1775325041784,-150.0,0.00015778,2]
[419705607,1775325041793,-150.0,0.00015778,2]
[419705608,1775325041802,-216.19443643,0.00015778,2]
[419705609,1775325041811,-150.0,0.00015782,2]
[419705610,1775325041820,-672.00857251,0.00015794,2]
[419705611,1775325041829,-1044.444306,0.00015795,2]
[419705612,1775325041838,-1044.444306,0.00015795,2]
[419705613,1775325041847,-1044.444306,0.00015795,2]
[419705614,1775325041856,-1044.444306,0.00015795,2]
[419705615,1775325041865,-500.0,0.00015795,2]
[419705616,1775325041874,-151.0,0.00015796,2]
[419705617,1775325041885,-151.0,0.00015796,2]
[419705618,1775325041896,-151.0,0.00015796,2]
[419705619,1775325041906,-1000.0,0.00015798,2]
[419705620,1775325041915,-160.9357,0.000158,2]
[419705621,1775325041924,-2000.0,0.00015801,2]
[419705622,1775325041933,-1347.0,0.00015803,2]
[419705623,1775325041942,-1046.0,0.00015803,2]
[419705624,1775325041951,-3521.0,0.00015803,2]
[419705625,1775325041960,-622.0,0.00015803,2]
[419705626,1775325041969,-150.0,0.00015803,2]
[419705627,1775325041978,-1263.0,0.00015803,2]
[419705628,1775325041987,-150.0,0.00015803,2]
[419705629,1775325041996,-6019.0,0.00015803,2]
[419705630,1775325042005,-2470.0,0.00015803,2]
[419705631,1775325042014,-1000.0,0.00015804,2]
[419705632,1775325042023,-150.0,0.00015822,2]
[419705633,1775325042032,-350.0,0.00015837,2]
[419705634,1775325042041,-150.0,0.0001584,2]
[419705635,1775325042050,-150.0,0.0001584,2]
[419705636,1775325042059,-1000.0,0.0001584,2]
[419705637,1775325042068,-1000.0,0.0001584,2]
[419705638,1775325042077,-785.54,0.00015844,2]
[419705639,1775325042086,-1000.0,0.0001585,2]
[419705640,1775325042095,-500.0,0.00015871,2]
[419705641,1775325042104,-500.0,0.00015872,2]
[419705642,1775325042113,-200.0,0.00015872,2]
[419705643,1775325042122,-150.0,0.00015877,2]
[419705644,1775325042132,-334.34591024,0.0001589,2]
[419705645,1775325042142,-2000.0,0.0001589,2]
[419705646,1775325042152,-2286.27,0.00015895,2]
[419705647,1775325042161,-151.0,0.00015897,2]
[419705648,1775325042170,-500.0,0.00015899,2]